lending/lending_fUSD_20260119
["ID","MTS","AMOUNT","RATE_DAILY","PERIOD"]
[402726481,1768846232064,-500.0,0.00016019,2]
[402726482,1768846232073,-4150.71391577,0.0001602,2]
[402726483,1768846232085,-1892.37996375,0.0001602,2]
[402726484,1768846232096,-382.35999,0.0001602,2]
[402726485,1768846232145,-991.96778752,0.0001602,2]
[402726486,1768846232156,-725.51791675,0.0001602,2]
[402726487,1768846232197,-500.0,0.00016019,2]
[402726488,1768846232207,-314.47785732,0.0001602,2]
[402726489,1768846232218,-473.81018795,0.0001602,2]
[402726490,1768846232230,-5469.63784536,0.0001602,2]
[402726498,1768846232326,-407.0,0.00016019,2]
[402726503,1768846232341,-93.0,0.00016019,2]
[402726505,1768846232351,-202.99999997,0.00016019,2]
[402726538,1768846238056,-142.97749709,0.00016019,2]
[402726539,1768846238076,-500.0,0.00016019,2]
[402726540,1768846238094,-500.0,0.00016019,2]
[402726541,1768846238113,-500.0,0.00016019,2]
[402726542,1768846238130,-500.0,0.00016019,2]
[402726543,1768846238151,-500.0,0.00016019,2]
[402726544,1768846238170,-500.0,0.00016019,2]
[402726545,1768846238190,-500.0,0.00016019,2]
[402726546,1768846238208,-500.0,0.00016019,2]
[402726547,1768846238228,-500.0,0.00016019,2]
[402726548,1768846238247,-500.0,0.00016019,2]
[402726549,1768846238264,-500.0,0.00016019,2]
[402726550,1768846238285,-988.27023902,0.0001602,2]
[402726551,1768846238300,-166.66,0.00016181,2]
[402726552,1768846238317,-166.66,0.00016515,2]
[402726553,1768846238344,-227.62,0.00016682,2]
[402726554,1768846238360,-1600.0,0.00016682,2]
[402726556,1768846238379,-296.44,0.00016682,2]
[402726557,1768846238395,-3240.0,0.00016682,2]
[402726558,1768846238414,-1000.0,0.00016682,2]
[402726559,1768846238430,-2485.84,0.00016682,2]
[402726560,1768846238448,-166.33,0.00016712,2]
[402726561,1768846238464,-151.0,0.00016755,2]
[402726562,1768846238482,-151.0,0.00016755,2]
[402726563,1768846238500,-151.0,0.00016766,2]
[402726564,1768846238517,-151.0,0.00016766,2]
[402726565,1768846238534,-151.0,0.00016771,2]
[402726566,1768846238551,-151.0,0.00016771,2]
[402726567,1768846238567,-151.0,0.00016777,2]
[402726568,1768846238584,-151.0,0.00016777,2]
[402726569,1768846238601,-166.66,0.00016848,2]
[402726570,1768846238618,-1199.06,0.00016848,2]
[402726571,1768846238636,-1834.34,0.00017,2]
[402726572,1768846238653,-1834.34,0.00017,2]
[402726573,1768846238671,-1834.34,0.00017,2]
[402726574,1768846238689,-1834.34,0.00017,2]
[402726575,1768846238707,-1834.34,0.00017,2]
[402726576,1768846238724,-510.0,0.00017002,2]
[402726577,1768846238741,-905.21882691,0.00017012,2]
[402726578,1768846238757,-1000.0,0.00017052,2]
[402726579,1768846238774,-1000.0,0.00017059,2]
[402726580,1768846238790,-426.99437804,0.00017092,2]
[402726581,1768846238807,-4444.0,0.00017092,2]
[402726582,1768846238823,-514.84070869,0.00017092,2]
[402726583,1768846238841,-200.0,0.00017097,2]
[402726584,1768846238859,-557.83,0.00017169,2]
[402726585,1768846238876,-179.62,0.00017169,2]
[402726586,1768846238892,-171.87,0.00017169,2]
[402726587,1768846238909,-557.83,0.00017169,2]
[402726588,1768846238925,-179.62,0.00017169,2]
[402726589,1768846238942,-171.87,0.00017169,2]
[402726590,1768846238959,-179.62,0.00017169,2]
[402726591,1768846238977,-274.28,0.00017169,2]
[402726592,1768846238993,-171.87,0.00017169,2]
[402726593,1768846239008,-179.62,0.00017169,2]
[402726594,1768846239025,-171.87,0.00017169,2]
[402726595,1768846239040,-166.66,0.00017182,2]
[402726596,1768846239057,-166.68,0.00017182,2]
[402726597,1768846239073,-1000.0,0.0001726,2]
[402726598,1768846239089,-1000.0,0.00017307,2]
[402726599,1768846239105,-15389.13570344,0.00017353,2]
[402726600,1768846239121,-179.62,0.00017478,2]
[402726601,1768846239136,-557.83,0.00017478,2]
[402726602,1768846239152,-171.87,0.00017478,2]
[402726603,1768846239168,-4826.0,0.00017493,2]
[402726604,1768846239187,-2440.0,0.00017493,2]
[402726605,1768846239204,-166.66,0.00017516,2]
[402726606,1768846239221,-180.8,0.00017518,2]
[402726607,1768846239240,-1000.0,0.00017534,2]
[402726608,1768846239255,-168.0,0.00017559,2]
[402726609,1768846239272,-227.62,0.00017608,2]
[402726610,1768846239287,-533.88981491,0.0001764,2]
[402726611,1768846239302,-150.0,0.00017699,2]
[402726612,1768846239317,-150.0,0.00017699,2]
[402726613,1768846239336,-150.0,0.00017699,2]
[402726614,1768846239352,-150.0,0.00017699,2]
[402726615,1768846239367,-150.0,0.00017699,2]
[402726616,1768846239384,-150.0,0.00017699,2]
[402726617,1768846239400,-150.0,0.00017699,2]
[402726618,1768846239415,-150.0,0.00017699,2]
[402726619,1768846239430,-150.0,0.00017699,2]
[402726620,1768846239446,-150.0,0.00017699,2]
[402726621,1768846239463,-150.0,0.00017699,2]
[402726622,1768846239479,-180.8,0.00017738,2]
[402726623,1768846239495,-150.0,0.00017754,2]
[402726624,1768846239511,-150.0,0.00017754,2]
[402726625,1768846239527,-150.0,0.00017754,2]
[402726626,1768846239542,-200.0,0.00017754,2]
[402726627,1768846239559,-226.37216843,0.00017754,2]
[402726628,1768846239575,-150.0,0.00017754,2]
[402726629,1768846239590,-200.0,0.00017754,2]
[402726630,1768846239605,-182.112,0.00017782,2]
[402726631,1768846239621,-2193.23,0.000178,2]
[402726632,1768846239636,-1000.0,0.00017808,2]
[402726633,1768846239652,-200.0,0.00017809,2]
[402726634,1768846239666,-150.0,0.00017809,2]
[402726635,1768846239682,-200.0,0.00017809,2]
[402726636,1768846239697,-200.0,0.00017809,2]
[402726637,1768846239713,-168.0,0.00017838,2]
[402726638,1768846239730,-200.0,0.00017856,2]
[402726639,1768846239744,-196.0,0.00017863,2]
[402726640,1768846239761,-6562.0,0.00017888,2]
[402726641,1768846239776,-1000.0,0.000179,2]
[402726642,1768846239791,-152.26864602,0.000179,2]
[402726643,1768846239807,-9802.23692885,0.000179,2]
[402726644,1768846239822,-1000.0,0.000179,2]
[402726645,1768846239836,-1203.01697334,0.000179,2]
[402726646,1768846239852,-2878.6653448,0.000179,2]
[402726647,1768846239866,-1000.0,0.000179,2]
[402726648,1768846239883,-1000.0,0.00017933,2]
[402726649,1768846239897,-180.8,0.00017958,2]
[402726650,1768846239913,-500.0,0.00017973,2]
[402726651,1768846239928,-500.0,0.00017973,2]
[402726652,1768846239944,-179.62,0.0001799,2]
[402726653,1768846239958,-152.0,0.00017993,2]
[402726654,1768846239974,-152.0,0.00017993,2]
[402726655,1768846239989,-151.0,0.00017997,2]
[402726656,1768846240004,-1000.0,0.00017998,2]
[402726657,1768846240019,-1019.5239975,0.00017999,2]
[402726658,1768846240034,-300.0,0.00017999,2]
[402726659,1768846240048,-300.0,0.00017999,2]
[402726660,1768846240063,-300.0,0.00017999,2]
[402726661,1768846240079,-300.0,0.00017999,2]
[402726662,1768846240096,-500.0,0.00017999,2]
[402726663,1768846240112,-500.0,0.00017999,2]
[402726664,1768846240128,-500.0,0.00017999,2]
[402726665,1768846240144,-300.0,0.00017999,2]
[402726666,1768846240158,-640.08930251,0.00017999,2]
[402726667,1768846240466,-219.04354596,0.00017999,2]
[402726668,1768846240498,-215.45881749,0.00017999,2]
[402726669,1768846240507,-4342.0,0.00018,2]
[402726670,1768846240517,-1161583.2527499,0.00018,2]
[402726671,1768846240569,-3557.83562371,0.00018,2]
[402726672,1768846240581,-8078.36748,0.00018,2]
[402726673,1768846240628,-619.98729057,0.00018,2]
[402726674,1768846240640,-107213.61154272,0.00018,2]
[402726675,1768846240651,-615.19451959,0.00018,2]
[402726676,1768846240663,-10382.20550006,0.00018,2]
[402726677,1768846240677,-2256.70555665,0.00018,2]
[402726678,1768846240689,-1709.25185107,0.00018,2]
[402726679,1768846240699,-3751.93058712,0.00018,2]
[402726680,1768846240715,-2043.10991138,0.00018,2]
[402726682,1768846241103,-3057.20276255,0.00018,2]
[402726683,1768846241166,-615.00501975,0.00018,2]
[402726684,1768846241180,-2179.26069336,0.00018,2]
[402726685,1768846241191,-92482.87015238,0.00018,2]
[402726686,1768846241226,-591.07158026,0.00018,2]
[402726687,1768846241239,-838.48,0.00018,2]
[402726688,1768846241250,-1998.5348,0.00018,2]
[402726693,1768846243087,-2672.38390029,0.00018,2]
[402726694,1768846243195,-12985.37605806,0.00018,2]
[402726695,1768846243206,-813.35506857,0.00018,2]
[402726696,1768846243355,-8710.36797746,0.00018,2]
[402726699,1768846246669,-282.3,0.00017888,2]
[402726700,1768846246773,-283.7,0.00017888,2]
[402726701,1768846246783,-151.0,0.00017993,2]
[402726702,1768846246793,-817.25682827,0.00018,2]
[402726703,1768846246813,-789.88461245,0.00018,2]
[402726704,1768846246824,-351.5521247,0.00018,2]
[402726888,1768846470903,1500.0,0.00027,120]
[402726989,1768847247498,170.49,0.00013211,2]
[402727044,1768847432137,-187.64021808,0.00015819,2]
[402727046,1768847432147,-284.76978193,0.0001582,2]
[402727048,1768847432243,-1594.4736441,0.0001582,2]
[402727049,1768847432299,-629.75778591,0.0001582,2]
[402727137,1768847438234,-4590.98998806,0.0001582,2]
[402727138,1768847438245,-500.0,0.0001591,2]
[402727139,1768847438255,-1200.0,0.00015918,2]
[402727140,1768847438264,-1000.0,0.00015919,2]
[402727141,1768847438274,-500.0,0.00015919,2]
[402727142,1768847438284,-500.0,0.00015919,2]
[402727143,1768847438294,-500.0,0.00015919,2]
[402727144,1768847438303,-500.0,0.00015919,2]
[402727145,1768847438313,-500.0,0.00015919,2]
[402727146,1768847438322,-500.0,0.00015919,2]
[402727147,1768847438332,-500.0,0.00015919,2]
[402727148,1768847438341,-500.0,0.00015919,2]
[402727149,1768847438351,-500.0,0.00015919,2]
[402727150,1768847438361,-313.27749709,0.00015919,2]
[402727151,1768847438370,-500.0,0.00015919,2]
[402727152,1768847438379,-500.0,0.00015919,2]
[402727153,1768847438389,-300.0,0.00015991,2]
[402727154,1768847438399,-300.0,0.00015992,2]
[402727155,1768847438408,-300.0,0.00015992,2]
[402727156,1768847438418,-2387.2562107,0.00015993,2]
[402727157,1768847438427,-1443.69,0.00016584,2]
[402727158,1768847438437,-1500.0,0.00016586,2]
[402727159,1768847438447,-200.0,0.00016682,2]
[402727160,1768847438457,-150.0,0.00016682,2]
[402727161,1768847438467,-2188.77,0.00016682,2]
[402727162,1768847438476,-370.47,0.00016682,2]
[402727163,1768847438486,-317.0,0.00016794,2]
[402727164,1768847438496,-200.0,0.00016812,2]
[402727165,1768847438506,-1199.06,0.00016825,2]
[402727166,1768847438515,-151.0,0.00016856,2]
[402727167,1768847438525,-151.0,0.00016899,2]
[402727168,1768847438535,-151.0,0.00016901,2]
[402727169,1768847438545,-151.0,0.00016901,2]
[402727170,1768847438555,-151.0,0.00016905,2]
[402727172,1768847438564,-151.0,0.00016905,2]
[402727174,1768847438573,-600.0,0.00016949,2]
[402727176,1768847438583,-550.0,0.00016999,2]
[402727178,1768847438594,-1834.34,0.00017,2]
[402727180,1768847438605,-1834.34,0.00017,2]
[402727181,1768847438615,-1834.34,0.00017,2]
[402727183,1768847438625,-1834.34,0.00017,2]
[402727186,1768847438635,-1834.34,0.00017,2]
[402727187,1768847438645,-9790.21,0.00017,2]
[402727189,1768847438656,-250.0,0.00017,2]
[402727191,1768847438666,-317.0,0.00017065,2]
[402727193,1768847439022,-317.0,0.00017078,2]
[402727194,1768847439032,-200.0,0.0001709,2]
[402727195,1768847439042,-4444.0,0.00017092,2]
[402727196,1768847439052,-514.84070869,0.00017092,2]
[402727197,1768847439062,-426.99437804,0.00017092,2]
[402727198,1768847439072,-1404.31999251,0.00017111,2]
[402727199,1768847439082,-179.62,0.00017178,2]
[402727200,1768847439092,-557.83,0.00017178,2]
[402727201,1768847439102,-171.87,0.00017178,2]
[402727202,1768847439112,-171.87,0.00017178,2]
[402727203,1768847439122,-557.83,0.00017178,2]
[402727204,1768847439131,-179.62,0.00017178,2]
[402727205,1768847439141,-557.83,0.00017178,2]
[402727206,1768847439151,-179.62,0.00017178,2]
[402727207,1768847439160,-171.87,0.00017178,2]
[402727208,1768847439170,-274.28,0.00017178,2]
[402727209,1768847439179,-171.87,0.00017178,2]
[402727210,1768847439189,-179.62,0.00017178,2]
[402727211,1768847439198,-171.87,0.00017178,2]
[402727212,1768847439208,-179.62,0.00017178,2]
[402727213,1768847439218,-317.0,0.00017243,2]
[402727214,1768847439227,-1000.0,0.0001726,2]
[402727215,1768847439237,-317.0,0.0001729,2]
[402727216,1768847439246,-317.0,0.00017292,2]
[402727217,1768847439255,-2387.2562107,0.00017324,2]
[402727218,1768847439265,-150.0,0.00017334,2]
[402727219,1768847439274,-317.0,0.00017362,2]
[402727220,1768847439283,-250.0,0.00017401,2]
[402727221,1768847439292,-349.41375875,0.00017401,2]
[402727222,1768847439301,-420.0,0.00017484,2]
[402727223,1768847439312,-2000.0,0.000175,2]
[402727224,1768847439322,-370.47,0.00017516,2]
[402727225,1768847439331,-217.0,0.00017524,2]
[402727226,1768847439340,-1999.0,0.00017534,2]
[402727227,1768847439348,-533.88981491,0.0001764,2]
[402727228,1768847439357,-2409.40287451,0.0001764,2]
[402727229,1768847439367,-150.0,0.00017699,2]
[402727230,1768847439376,-200.0,0.00017699,2]
[402727231,1768847439385,-150.0,0.00017699,2]
[402727232,1768847439394,-150.0,0.00017699,2]
[402727233,1768847439403,-150.0,0.00017699,2]
[402727234,1768847439413,-150.0,0.00017699,2]
[402727235,1768847439422,-150.0,0.00017699,2]
[402727236,1768847439431,-150.0,0.00017699,2]
[402727237,1768847439440,-150.0,0.00017699,2]
[402727238,1768847439450,-150.0,0.00017699,2]
[402727239,1768847439460,-500.0,0.00017699,2]
[402727240,1768847439469,-150.0,0.00017699,2]
[402727241,1768847439479,-228.08835747,0.00017699,2]
[402727242,1768847439488,-150.0,0.00017699,2]
[402727243,1768847439498,-210.20107103,0.00017699,2]
[402727244,1768847439507,-150.0,0.00017699,2]
[402727245,1768847439519,-150.0,0.00017699,2]
[402727246,1768847439528,-150.0,0.00017699,2]
[402727247,1768847439537,-150.0,0.00017699,2]
[402727248,1768847439546,-150.0,0.00017699,2]
[402727249,1768847439555,-150.0,0.00017699,2]
[402727250,1768847439564,-1000.0,0.000177,2]
[402727251,1768847439573,-1000.0,0.000177,2]
[402727252,1768847439583,-1293.0,0.000177,2]
[402727253,1768847439592,-1000.0,0.000177,2]
[402727254,1768847439601,-150.0,0.00017726,2]
[402727255,1768847439610,-217.0,0.00017744,2]
[402727256,1768847439620,-500.0,0.00017753,2]
[402727257,1768847439629,-150.0,0.00017754,2]
[402727258,1768847439639,-150.0,0.00017754,2]
[402727259,1768847439648,-150.0,0.00017754,2]
[402727260,1768847439658,-150.0,0.00017754,2]
[402727261,1768847439667,-150.0,0.00017754,2]
[402727262,1768847439678,-150.0,0.00017754,2]
[402727263,1768847439687,-150.0,0.00017754,2]
[402727264,1768847439696,-150.0,0.00017754,2]
[402727265,1768847439705,-150.0,0.00017754,2]
[402727266,1768847439715,-500.0,0.00017754,2]
[402727267,1768847439725,-150.0,0.00017754,2]
[402727268,1768847439734,-150.0,0.00017754,2]
[402727269,1768847439743,-150.0,0.00017754,2]
[402727270,1768847439754,-150.0,0.00017754,2]
[402727271,1768847439763,-150.0,0.00017754,2]
[402727272,1768847439773,-150.0,0.00017754,2]
[402727273,1768847439782,-755.71870021,0.00017756,2]
[402727274,1768847439791,-755.71870014,0.00017772,2]
[402727275,1768847439800,-182.111,0.0001778,2]
[402727276,1768847439809,-755.71870014,0.00017788,2]
[402727277,1768847439819,-2608.723,0.00017789,2]
[402727278,1768847439828,-1000.0,0.000178,2]
[402727279,1768847439838,-1000.0,0.000178,2]
[402727280,1768847439848,-1000.0,0.000178,2]
[402727281,1768847439859,-1863.06205984,0.000178,2]
[402727282,1768847439868,-199.07478392,0.000178,2]
[402727283,1768847439878,-755.71870014,0.00017804,2]
[402727284,1768847439887,-1000.0,0.00017808,2]
[402727285,1768847439897,-236.0,0.00017809,2]
[402727286,1768847439907,-237.54584624,0.00017809,2]
[402727287,1768847439917,-150.0,0.00017809,2]
[402727288,1768847439927,-150.0,0.00017809,2]
[402727289,1768847439937,-150.0,0.00017809,2]
[402727290,1768847439946,-150.0,0.00017809,2]
[402727291,1768847439956,-150.0,0.00017809,2]
[402727292,1768847439966,-200.0,0.00017809,2]
[402727293,1768847439975,-150.0,0.00017809,2]
[402727294,1768847439985,-292.0,0.00017809,2]
[402727295,1768847439994,-150.0,0.00017809,2]
[402727296,1768847440004,-150.0,0.00017809,2]
[402727297,1768847440013,-150.0,0.00017809,2]
[402727298,1768847440023,-200.0,0.00017809,2]
[402727299,1768847440032,-150.0,0.00017809,2]
[402727300,1768847440044,-1863.06205982,0.00017811,2]
[402727301,1768847440054,-755.71870014,0.0001782,2]
[402727302,1768847440064,-1863.06205982,0.00017822,2]
[402727303,1768847440073,-1863.06205982,0.00017833,2]
[402727304,1768847440083,-755.71870014,0.00017836,2]
[402727305,1768847440092,-25000.0,0.00017838,3]
[402727306,1768847440101,-246.96904772,0.00017844,2]
[402727307,1768847440110,-369.45092514,0.00017844,2]
[402727308,1768847440119,-499.8708,0.00017844,2]
[402727309,1768847440128,-1863.06205982,0.00017844,2]
[402727310,1768847440138,-219.04354596,0.00017846,2]
[402727311,1768847440147,-215.45881749,0.00017846,2]
[402727312,1768847440157,-25000.0,0.00017847,3]
[402727313,1768847440166,-199.07478391,0.0001785,2]
[402727314,1768847440176,-755.71870014,0.00017852,2]
[402727315,1768847440185,-1863.06205982,0.00017856,2]
[402727316,1768847440195,-25000.0,0.00017856,3]
[402727317,1768847440204,-150.0,0.00017863,2]
[402727318,1768847440214,-204.23631951,0.00017863,2]
[402727319,1768847440227,-150.0,0.00017863,2]
[402727320,1768847440237,-150.0,0.00017863,2]
[402727321,1768847440246,-150.0,0.00017863,2]
[402727322,1768847440256,-150.0,0.00017863,2]
[402727323,1768847440265,-150.0,0.00017863,2]
[402727324,1768847440274,-150.0,0.00017863,2]
[402727325,1768847440283,-150.0,0.00017863,2]
[402727326,1768847440292,-150.0,0.00017863,2]
[402727327,1768847440301,-25000.0,0.00017865,3]
[402727328,1768847440310,-1863.06205982,0.00017867,2]
[402727329,1768847440319,-755.71870014,0.00017868,2]
[402727330,1768847440328,-25000.0,0.00017874,3]
[402727331,1768847440336,-1863.06205982,0.00017878,2]
[402727332,1768847440346,-25000.0,0.00017882,3]
[402727333,1768847440355,-456.0,0.00017883,2]
[402727334,1768847440363,-755.71870014,0.00017884,2]
[402727335,1768847440372,-1863.06205982,0.00017889,2]
[402727336,1768847440381,-25000.0,0.00017891,3]
[402727337,1768847440390,-151.0,0.00017897,2]
[402727338,1768847440399,-1000.0,0.000179,2]
[402727339,1768847440408,-323.39763498,0.000179,2]
[402727340,1768847440418,-25000.0,0.000179,3]
[402727341,1768847440428,-1000.0,0.000179,2]
[402727342,1768847440438,-755.71870014,0.000179,2]
[402727343,1768847440447,-500.0,0.000179,2]
[402727344,1768847440456,-500.0,0.000179,2]
[402727345,1768847440466,-500.0,0.000179,2]
[402727346,1768847440475,-500.0,0.000179,2]
[402727347,1768847440484,-500.0,0.000179,2]
[402727348,1768847440494,-500.0,0.000179,2]
[402727349,1768847440503,-500.0,0.000179,2]
[402727350,1768847440513,-500.0,0.000179,2]
[402727351,1768847440523,-500.0,0.000179,2]
[402727352,1768847440532,-500.0,0.000179,2]
[402727353,1768847440542,-500.0,0.000179,2]
[402727354,1768847440551,-500.0,0.000179,2]
[402727355,1768847440561,-500.0,0.000179,2]
[402727356,1768847440570,-500.0,0.000179,2]
[402727357,1768847440580,-500.0,0.000179,2]
[402727358,1768847440589,-500.0,0.000179,2]
[402727359,1768847440599,-500.0,0.000179,2]
[402727360,1768847440609,-500.0,0.000179,2]
[402727361,1768847440619,-500.0,0.000179,2]
[402727362,1768847440628,-500.0,0.000179,2]
[402727363,1768847440637,-500.0,0.000179,2]
[402727364,1768847440647,-500.0,0.000179,2]
[402727365,1768847440656,-500.0,0.000179,2]
[402727366,1768847440666,-500.0,0.000179,2]
[402727367,1768847440681,-500.0,0.000179,2]
[402727368,1768847440690,-500.0,0.000179,2]
[402727369,1768847440700,-500.0,0.000179,2]
[402727370,1768847440710,-500.0,0.000179,2]
[402727371,1768847440721,-500.0,0.000179,2]
[402727372,1768847440731,-500.0,0.000179,2]
[402727373,1768847440740,-500.0,0.000179,2]
[402727374,1768847440751,-500.0,0.000179,2]
[402727375,1768847440760,-500.0,0.000179,2]
[402727376,1768847440769,-500.0,0.000179,2]
[402727377,1768847440783,-554.75776,0.000179,2]
[402727378,1768847440793,-2878.6653448,0.000179,2]
[402727379,1768847440803,-184.87505215,0.000179,3]
[402727380,1768847440813,-1863.06205982,0.000179,2]
[402727381,1768847440822,-2878.66534478,0.00017918,2]
[402727382,1768847440832,-150.0,0.00017918,2]
[402727383,1768847440842,-150.0,0.00017918,2]
[402727384,1768847440851,-150.0,0.00017918,2]
[402727385,1768847440860,-150.0,0.00017918,2]
[402727386,1768847440870,-150.0,0.00017918,2]
[402727387,1768847440879,-150.0,0.00017918,2]
[402727388,1768847440889,-276.37216843,0.00017918,2]
[402727389,1768847440906,-250.0,0.00017918,2]
[402727390,1768847440925,-250.0,0.00017918,2]
[402727391,1768847440940,-2878.66534478,0.00017935,2]
[402727392,1768847440956,-217.0,0.00017963,2]
[402727393,1768847440974,-500.0,0.00017973,2]
[402727394,1768847440991,-500.0,0.00017973,2]
[402727395,1768847441004,-250.0,0.00017973,2]
[402727397,1768847441021,-250.0,0.00017973,2]
[402727398,1768847441038,-250.0,0.00017973,2]
[402727399,1768847441056,-250.0,0.00017973,2]
[402727400,1768847441071,-250.0,0.00017973,2]
[402727401,1768847441089,-250.0,0.00017973,2]
[402727402,1768847441106,-151.0,0.00017993,2]
[402727403,1768847441122,-151.0,0.00017993,2]
[402727404,1768847441141,-151.0,0.00017993,2]
[402727405,1768847441156,-151.0,0.00017993,2]
[402727406,1768847441171,-151.0,0.00017993,2]
[402727407,1768847441191,-151.0,0.00017993,2]
[402727408,1768847441203,-151.0,0.00017993,2]
[402727409,1768847441217,-151.0,0.00017993,2]
[402727410,1768847441235,-151.0,0.00017993,2]
[402727411,1768847441249,-150.0,0.00017995,2]
[402727412,1768847441262,-150.0,0.00017995,2]
[402727413,1768847441277,-150.0,0.00017995,2]
[402727414,1768847441293,-151.0,0.00017997,2]
[402727415,1768847441307,-500.0,0.00017999,2]
[402727416,1768847441333,-500.0,0.00017999,2]
[402727417,1768847441347,-234.36,0.00017999,2]
[402727418,1768847441362,-300.0,0.00017999,2]
[402727419,1768847441376,-1000.0,0.00017999,2]
[402727420,1768847441391,-300.0,0.00017999,2]
[402727421,1768847441404,-5800.0,0.00017999,2]
[402727422,1768847441419,-1071.11189023,0.00017999,5]
[402727423,1768847441433,-500.0,0.00017999,2]
[402727424,1768847441447,-500.0,0.00017999,2]
[402727425,1768847441460,-500.0,0.00017999,2]
[402727426,1768847441474,-300.0,0.00017999,2]
[402727427,1768847441488,-300.0,0.00017999,2]
[402727428,1768847441502,-300.0,0.00017999,2]
[402727429,1768847441516,-4339.0,0.00018,2]
[402727430,1768847441531,-901115.66977071,0.00018,2]
[402727440,1768847443489,-12293.66111105,0.00018,2]
[402727441,1768847443662,-15396.54651193,0.00018,2]
[402727444,1768847443701,-2095.592,0.00018,2]
[402727445,1768847443715,-1750.0,0.00018,2]
[402727446,1768847443732,-4220729.19725615,0.00018,2]
[402727447,1768847443757,-356.68236483,0.00018,2]
[402727448,1768847443769,-644.38,0.00018,2]
[402727450,1768847443780,-930.165,0.00018,2]
[402727453,1768847443928,-852.58898063,0.00018,2]
[402727454,1768847443944,-619.94646908,0.00018,2]
[402727455,1768847443956,-1012.68459326,0.00018,2]
[402727456,1768847443976,-420.42006231,0.00018,2]
[402727457,1768847443987,-13043.65076982,0.00018,2]
[402727458,1768847444004,-771472.85773239,0.00018,2]
[402727459,1768847444014,-382749.13000279,0.00018,2]
[402727460,1768847444024,-126464.60072628,0.00018,2]
[402727461,1768847444035,-447.27153168,0.00018,2]
[402727462,1768847444060,-179.62,0.00017178,2]
[402727463,1768847444070,-5380.24373034,0.00018,2]
[402727464,1768847444081,-3152.19488824,0.00018,2]
[402727465,1768847444092,-735.24608787,0.00018,2]
[402727466,1768847446208,-199.07478391,0.000179,2]
[402727467,1768847446218,-927.71462638,0.00018,2]
[402727468,1768847446229,-23916.42488506,0.00018,2]
[402727469,1768847446260,-3607.02658723,0.00018,2]
[402727475,1768847556489,16097.72834849,0.00015,2]
[402727501,1768847940517,379.0,0.00015817,120]
[402727548,1768848493929,1600.0,0.00024943,120]
[402727562,1768848631384,-1751.7628,0.0001572,2]
[402727563,1768848631394,-903.43856658,0.0001581,2]
[402727564,1768848631406,-296.56143342,0.0001581,2]
[402727565,1768848631416,-200.0,0.00015811,2]
[402727566,1768848631426,-500.0,0.00015811,2]
[402727567,1768848631436,-500.0,0.00015811,2]
[402727568,1768848631445,-500.0,0.00015811,2]
[402727569,1768848631455,-300.0,0.00015817,2]
[402727570,1768848631466,-300.0,0.00015817,2]
[402727571,1768848631475,-500.0,0.00015819,2]
[402727572,1768848631485,-645.9197219,0.00015819,2]
[402727573,1768848631494,-300.0,0.00015819,2]